bitfinex-derivatives/quotes_BNBF0:USTF0_20250316
["timestamp","ask_amount","ask_price","bid_price","bid_amount"]
[1742086855105,0.32270035,619.77,618.47,0.99375116]
[1742086855303,0.32270035,619.77,618.48,0.99360634]
[1742086855507,0.32270035,619.77,618.49,0.9935362]
[1742086855706,0.32270035,619.77,618.5,0.9935362]
[1742086855905,0.32270035,619.77,618.46,0.32338388]
[1742086856101,0.32270035,619.77,618.47,0.99343018]
[1742086856310,0.32270035,619.77,618.48,0.99343018]
[1742086856612,0.32270035,619.77,618.49,0.99343018]
[1742086856808,0.32270035,619.77,618.47,1.10147578]
[1742086857108,0.32270035,619.77,618.48,0.98561774]
[1742086857309,0.32270035,619.77,618.46,0.32338388]
[1742086857502,0.32270035,619.77,618.47,0.98561035]
[1742086857706,0.32270035,619.77,618.48,0.98561035]
[1742086857908,0.32270035,619.77,618.46,0.32338388]
[1742086858206,0.32270035,619.77,618.47,0.98559349]
[1742086858507,0.32270035,619.77,618.48,0.98559349]
[1742086858707,0.32270035,619.77,618.46,0.32338388]
[1742086859007,0.32270035,619.77,618.47,0.98558635]
[1742086859208,0.32270035,619.77,618.46,0.32338388]
[1742086859408,0.32270035,619.77,618.47,0.9855893]
[1742086859608,0.32270035,619.77,618.46,0.32338388]
[1742086860707,0.32270035,619.77,618.47,0.98581617]
[1742086860909,0.32270035,619.77,618.48,0.98581617]
[1742086861101,0.28116668,619.76,618.46,0.32338388]
[1742086861304,0.32271077,619.75,618.47,0.98575495]
[1742086861503,0.32271077,619.75,618.46,0.32338388]
[1742086861908,0.32271077,619.75,618.47,0.98570096]
[1742086862202,0.32271077,619.75,618.46,0.32338388]
[1742086862602,0.32271077,619.75,618.47,0.98558856]
[1742086862804,0.32271077,619.75,618.46,0.32338388]
[1742086863208,0.28121212,619.74,618.46,0.32338388]
[1742086863408,0.32272118,619.73,618.46,0.32338388]
[1742086867612,0.32272118,619.73,618.47,0.98471547]
[1742086867911,0.32272118,619.73,618.48,0.98471547]
[1742086868112,0.32272118,619.73,618.46,0.32338388]
[1742086868312,0.32272118,619.73,618.47,0.98471401]
[1742086868507,0.32272118,619.73,618.48,0.98471401]
[1742086868706,0.32272118,619.73,618.46,0.32338388]
[1742086871409,0.28117917,619.72,618.46,0.32338388]
[1742086871805,0.32272118,619.73,618.46,0.32338388]
[1742086874817,0.32272118,619.73,618.47,1.582]
[1742086875912,0.32272118,619.73,618.48,1.373]
[1742086876409,0.32272118,619.73,618.49,1.731]
[1742086877312,0.28118826,619.72,618.49,1.731]
[1742086877705,0.28118826,619.72,618.5,1.368]
[1742086877906,0.32272118,619.73,618.5,1.368]
[1742086879111,0.28118599,619.72,618.5,1.368]
[1742086880814,0.32272118,619.73,618.5,1.368]
[1742086882212,0.28119962,619.72,618.5,1.368]
[1742086886924,0.32272118,619.73,618.5,1.368]
[1742086888125,0.28122462,619.72,618.5,1.368]
[1742086888326,0.3227316,619.71,618.5,1.368]
[1742086890328,0.28124848,619.7,618.5,1.368]
[1742086890524,0.32274201,619.69,618.5,1.368]
[1742086891028,0.32274201,619.69,618.51,1.502]
[1742086893232,0.2812553,619.68,618.52,1.631]
[1742086893434,0.32275243,619.67,618.52,1.631]
[1742086895534,0.32275243,619.67,618.52,2.899]
[1742086896236,0.28125644,619.66,618.52,2.899]
[1742086896535,0.32276284,619.65,618.52,2.899]
[1742086899232,0.28127235,619.64,618.52,2.899]
[1742086899429,0.32277326,619.63,618.52,2.899]
[1742086901438,0.32277326,619.63,618.52,4.341]
[1742086903034,0.28133261,619.62,618.52,5.752]
[1742086903238,0.32278889,619.6,618.52,5.752]
[1742086905240,0.2814111,619.59,618.52,5.752]
[1742086905440,0.32280452,619.57,618.52,5.752]
[1742086905644,2.46432273,619.37,618.52,5.752]
[1742086905840,0.32291918,619.35,618.52,5.752]
[1742086910945,0.32291918,619.35,618.52,7.2]
[1742086911940,0.28133716,619.34,618.52,7.2]
[1742086912141,0.32293483,619.32,618.52,7.2]
[1742086915148,0.28135422,619.31,618.52,7.2]
[1742086915341,0.32293483,619.32,618.52,7.2]
[1742086915843,2.46432273,620.31,618.52,7.2]
[1742086916043,0.32242983,620.29,618.52,7.2]
[1742086918053,0.28112125,620.28,618.52,7.2]
[1742086918353,0.32244542,620.26,618.52,7.2]
[1742086922355,2.46432273,620.24,618.52,7.2]
[1742086922856,2.46432273,620.24,618.52,8.254]
[1742086923154,0.28117463,620.23,618.52,8.254]
[1742086923350,0.32246622,620.22,618.52,8.254]
[1742086927055,0.28119962,620.21,618.52,8.254]
[1742086927255,0.32248182,620.19,618.52,8.254]
[1742086928458,2.46432273,620.16,618.52,8.254]
[1742086929158,0.32250782,620.14,618.52,8.254]
[1742086932968,2.46432273,620.11,618.52,8.254]
[1742086933168,0.32253382,620.09,618.52,8.254]
[1742086935066,2.46432273,619.83,618.52,8.254]
[1742086936066,0.28129168,619.82,618.52,8.254]
[1742086936664,0.32268473,619.8,618.52,8.254]
[1742086938166,0.28126099,619.79,618.52,8.254]
[1742086938571,0.32270035,619.77,618.52,8.254]
[1742086941172,0.2812644,619.76,618.52,8.254]
[1742086941372,0.32271597,619.74,618.52,8.254]
[1742086942273,2.46432273,619.73,618.52,8.254]
[1742086942470,0.3227316,619.71,618.52,8.254]
[1742086945271,0.28127122,619.7,618.52,8.254]
[1742086945468,0.32274722,619.68,618.52,8.254]
[1742086948169,0.28122689,619.67,618.52,8.254]
[1742086948874,0.32275764,619.66,618.52,8.254]
[1742086950169,0.28123712,619.65,618.52,8.254]
[1742086950470,0.32276805,619.64,618.52,8.254]
[1742086957174,0.32276805,619.64,618.53,0.32334729]
[1742086959978,0.32276805,619.64,618.53,1.66334729]
[1742086960181,0.32276805,619.64,618.53,2.78034729]
[1742086960984,0.32276805,619.64,618.53,5.46534729]
[1742086961185,0.32276805,619.64,618.53,6.85834729]
[1742086964589,0.32276805,619.64,618.53,7.94234729]
[1742086970500,0.32276805,619.64,618.54,0.97817946]
[1742086970697,0.32276805,619.64,618.55,1.30151629]
[1742086970897,0.32276805,619.64,618.56,1.30151106]
[1742086971098,0.32276805,619.64,618.57,1.30150584]
[1742086971294,0.32276805,619.64,618.58,1.30145254]
[1742086971500,2.46432273,620.44,618.59,1.30141572]
[1742086971699,0.32236227,620.42,618.6,1.3014105]
[1742086971895,0.32236227,620.42,618.61,1.30140527]
[1742086972199,0.28104293,620.41,618.62,1.30140004]
[1742086972400,0.32237785,620.39,618.63,1.30139482]
[1742086972702,0.32237785,620.39,618.64,1.30138959]
[1742086972902,0.32237785,620.39,618.65,0.9780998]
[1742086973103,0.32237785,620.39,618.66,1.30137914]
[1742086973402,0.32237785,620.39,618.67,0.9780998]
[1742086973597,0.32237785,620.39,618.66,1.4000279]
[1742086973902,0.32237785,620.39,618.67,0.97771384]
[1742086974202,0.32237785,620.39,618.68,0.97769877]
[1742086974402,0.32237785,620.39,618.69,0.97769877]
[1742086974702,0.32237785,620.39,618.7,0.97794513]
[1742086974902,0.32237785,620.39,618.71,0.97776509]
[1742086975197,0.32237785,620.39,618.72,0.97776509]
[1742086975394,0.32237785,620.39,618.73,0.97776509]
[1742086975597,0.32237785,620.39,618.74,0.97776509]
[1742086975798,0.32237785,620.39,618.74,1.30100263]
[1742086976001,0.32237785,620.39,618.75,0.97776509]
[1742086976202,0.32237785,620.39,618.76,0.32322709]
[1742086978202,0.28094423,620.38,618.77,0.97695327]
[1742086978398,0.28094423,620.38,618.78,0.97695327]
[1742086978602,0.28094423,620.38,618.79,0.97695327]
[1742086978808,0.28094423,620.38,618.8,0.97695327]
[1742086979001,0.28094423,620.38,618.81,1.30015425]
[1742086979201,0.32238825,620.37,618.82,1.30014902]
[1742086979401,0.32238825,620.37,618.83,1.3001438]
[1742086979602,0.32238825,620.37,618.84,1.30013858]
[1742086979799,0.32238825,620.37,618.85,0.97695327]
[1742086979999,0.32238825,620.37,618.84,1.39862606]
[1742086980195,0.32238825,620.37,618.85,0.32318009]
[1742086981199,0.28096465,620.36,618.85,0.32318009]
[1742086981404,0.32240384,620.34,618.85,0.32318009]
[1742086984302,0.28092382,620.33,618.85,0.32318009]
[1742086984505,0.32241943,620.31,618.85,0.32318009]
[1742086985907,0.32241943,620.31,618.86,1.566]
[1742086986102,0.32241943,620.31,618.86,3.053]
[1742086987108,0.28095557,620.3,618.86,3.053]
[1742086987309,0.32242983,620.29,618.86,3.053]
[1742086990209,0.28098733,620.28,618.86,3.053]
[1742086990409,0.32244542,620.26,618.86,3.053]
[1742086992410,0.32244542,620.26,618.87,1.129]
[1742086993205,0.2809862,620.25,618.87,1.129]
[1742086993410,0.32245582,620.24,618.87,1.129]
[1742086996206,0.28099641,620.23,618.87,1.129]
[1742086996411,0.32246622,620.22,618.87,1.129]
[1742086999221,0.2810225,620.21,618.87,1.129]
[1742086999421,0.32248182,620.19,618.87,1.129]
[1742087001824,0.32248182,620.19,618.88,1.222]
[1742087006430,0.2809862,620.18,618.88,1.222]
[1742087006630,0.32249221,620.17,618.88,1.222]
[1742087008132,0.28098506,620.16,618.88,1.222]
[1742087008332,0.32250262,620.15,618.88,1.222]
[1742087010126,0.28102023,620.14,618.88,1.222]
[1742087010332,0.32251302,620.13,618.88,1.222]
[1742087013241,0.60353552,620.13,618.88,1.222]
[1742087016032,0.32251302,620.13,618.88,1.222]
[1742087018436,0.60353552,620.13,618.88,1.222]
[1742087019035,0.32251302,620.13,618.88,1.222]
[1742087019241,0.60353666,620.13,618.88,1.222]
[1742087021042,0.60353666,620.13,618.85,0.32318009]
[1742087022141,0.32251302,620.13,618.85,0.32318009]
[1742087023141,0.32251302,620.13,618.86,0.97688664]
[1742087023443,0.32251302,620.13,618.87,1.30005628]
[1742087023742,0.32251302,620.13,618.65,1.072]
[1742087023743,0.32251302,620.13,618.88,1.30005106]
[1742087024041,0.32251302,620.13,618.89,1.30004584]
[1742087024244,0.32251302,620.13,618.9,1.30004062]
[1742087024435,0.32251302,620.13,618.91,0.97688664]
[1742087024638,0.32251302,620.13,618.9,0.32315398]
[1742087024639,0.32251302,620.13,618.92,0.97688664]
[1742087024839,0.32251302,620.13,618.9,0.32315398]
[1742087025040,0.32251302,620.13,618.91,0.97653386]
[1742087025234,0.32251302,620.13,618.92,0.97653386]
[1742087025439,0.32251302,620.13,618.93,0.97653386]
[1742087025941,0.32251302,620.13,618.9,0.32315398]
[1742087026141,0.32251302,620.13,618.91,0.97653511]
[1742087026343,0.32251302,620.13,618.92,0.97653511]
[1742087026540,0.32251302,620.13,618.9,0.32315398]
[1742087032246,0.60347426,620.13,618.9,0.32315398]
[1742087034047,0.32251302,620.13,618.9,0.32315398]
[1742087035146,0.60346519,620.13,618.9,0.32315398]
[1742087037046,0.32251302,620.13,618.9,0.32315398]
[1742087038152,0.60346065,620.13,618.9,0.32315398]
[1742087039954,0.32251302,620.13,618.9,0.32315398]
[1742087041555,0.32251302,620.13,618.91,0.97867278]
[1742087041755,0.32251302,620.13,618.92,0.97863869]
[1742087041956,0.32251302,620.13,618.9,0.32315398]
[1742087042257,0.32251302,620.13,618.91,0.97862126]
[1742087042556,0.32251302,620.13,618.92,0.97862126]
[1742087042750,0.32251302,620.13,618.93,0.97862126]
[1742087042953,0.32251302,620.13,618.9,0.32315398]
[1742087043151,0.32251302,620.13,618.91,0.97860359]
[1742087043353,0.32251302,620.13,618.92,0.97860359]
[1742087043555,0.32251302,620.13,618.93,0.97860359]
[1742087043755,0.32251302,620.13,618.94,0.97860359]
[1742087043952,0.32251302,620.13,618.95,0.97860359]
[1742087044255,0.32251302,620.13,618.9,0.32315398]
[1742087044452,0.32251302,620.13,618.91,0.97851839]
[1742087044655,0.32251302,620.13,618.92,0.97851839]
[1742087044950,0.32251302,620.13,618.93,0.97851839]
[1742087045154,0.32251302,620.13,618.94,0.97851839]
[1742087045354,0.32251302,620.13,618.95,0.97851839]
[1742087045556,0.32251302,620.13,618.9,0.32315398]
[1742087045758,0.32251302,620.13,618.91,2.04124091]
[1742087045955,0.32251302,620.13,618.92,0.97117352]
[1742087046152,0.32251302,620.13,618.93,0.97117253]
[1742087046354,0.32251302,620.13,618.94,0.97117253]
[1742087046558,0.32251302,620.13,618.92,1.558]
[1742087046758,0.32251302,620.13,618.93,0.97116348]
[1742087046958,0.32251302,620.13,618.94,0.97116348]
[1742087047162,0.32251302,620.13,618.92,1.558]
[1742087047354,0.32251302,620.13,618.93,0.97120792]
[1742087047658,0.32251302,620.13,618.94,0.97120792]
[1742087047858,0.32251302,620.13,618.95,0.97120792]
[1742087048058,0.32251302,620.13,618.92,1.558]
[1742087048256,0.32251302,620.13,618.93,0.97116408]
[1742087048452,0.32251302,620.13,618.94,0.97116408]
[1742087048653,0.32251302,620.13,618.92,1.558]
[1742087050259,0.32251302,620.13,618.93,0.97060803]
[1742087050561,0.32251302,620.13,618.94,0.97063693]
[1742087050761,0.32251302,620.13,618.93,1.99913831]
[1742087051062,0.32251302,620.13,618.94,0.97065051]
[1742087051259,0.32251302,620.13,618.93,1.99913831]
[1742087055961,0.32251302,620.13,618.93,3.54613831]
[1742087056866,0.32251302,620.13,618.94,0.97076591]
[1742087057068,0.32251302,620.13,618.93,4.87613831]
[1742087057368,0.32251302,620.13,618.94,0.97075606]
[1742087057563,0.32251302,620.13,618.93,4.87613831]
[1742087058363,0.32251302,620.13,618.93,6.90713831]
[1742087058570,0.32251302,620.13,618.94,0.97106836]
[1742087058768,0.32251302,620.13,618.93,6.90713831]
[1742087058970,0.32251302,620.13,618.94,0.97106745]
[1742087059165,0.32251302,620.13,618.93,6.90713831]
[1742087059366,0.32251302,620.13,618.94,0.97107716]
[1742087059569,0.32251302,620.13,618.93,6.90713831]
[1742087059768,0.32251302,620.13,618.94,0.97123162]
[1742087059968,0.32251302,620.13,618.93,6.90713831]
[1742087060164,0.32251302,620.13,618.94,0.97114073]
[1742087060365,0.32251302,620.13,618.95,0.97131067]
[1742087060567,0.32251302,620.13,618.93,6.90713831]
[1742087060770,0.32251302,620.13,618.94,0.97135107]
[1742087060970,0.32251302,620.13,618.95,0.97136487]
[1742087061267,0.32251302,620.13,618.93,6.90713831]
[1742087061475,0.32251302,620.13,618.94,0.97132485]
[1742087061672,0.32251302,620.13,618.95,0.97132485]
[1742087061871,0.32251302,620.13,618.96,0.97132485]
[1742087062073,0.32251302,620.13,618.93,6.90713831]
[1742087062367,0.32251302,620.13,618.94,0.97143312]
[1742087062667,0.32251302,620.13,618.95,0.97143312]
[1742087062872,0.32251302,620.13,618.96,0.97143312]
[1742087063066,0.32251302,620.13,618.93,6.90713831]
[1742087063270,0.32251302,620.13,618.94,0.97150182]
[1742087063471,0.32251302,620.13,618.95,0.97150182]
[1742087063770,0.32251302,620.13,618.93,6.90713831]
[1742087066974,0.32251302,620.13,618.94,0.96342226]
[1742087067174,0.32251302,620.13,618.95,0.96342226]
[1742087067374,0.32251302,620.13,618.96,0.96342226]
[1742087067574,0.32251302,620.13,618.95,1.06968821]
[1742087067773,0.32251302,620.13,618.96,0.9631733]
[1742087067970,0.32251302,620.13,618.97,0.9631733]
[1742087068274,0.32251302,620.13,618.95,1.06968821]
[1742087068476,0.32251302,620.13,618.96,0.96297412]
[1742087068776,0.32251302,620.13,618.97,0.96295745]
[1742087068973,0.32251302,620.13,618.98,0.96295745]
[1742087069178,0.32251302,620.13,618.93,6.90713831]
[1742087069378,0.32251302,620.13,618.99,1.132]
[1742087069977,0.32251302,620.13,619.0,0.96260196]
[1742087070173,0.32251302,620.13,618.99,1.132]
[1742087071173,0.32251302,620.13,619.0,0.96221965]
[1742087071371,0.32251302,620.13,619.01,0.96221965]
[1742087071677,0.32251302,620.13,619.02,2.50099115]
[1742087071878,0.32251302,620.13,618.99,1.132]
[1742087071879,0.32251302,620.13,619.03,2.50099115]
[1742087072080,0.32251302,620.13,618.99,1.132]
[1742087072377,0.32251302,620.13,619.0,1.0685597]
[1742087072878,0.32251302,620.13,618.99,1.132]
[1742087077688,0.32251302,620.13,619.0,1.329]
[1742087086188,0.32251302,620.13,619.01,1.574]
[1742087087691,0.32251302,620.13,619.02,1.259]
[1742087092194,0.28097712,620.12,619.02,1.259]
[1742087092395,0.32252342,620.11,619.02,1.259]
[1742087093493,0.32252342,620.11,619.02,2.359]
[1742087093998,0.32252342,620.11,619.02,3.568]
[1742087095198,0.28099187,620.1,619.02,3.568]
[1742087096896,0.32253382,620.09,619.02,3.568]
[1742087105797,0.32253382,620.09,619.02,4.848]
[1742087106200,0.32253382,620.09,619.02,6.367]
[1742087107007,0.32253382,620.09,619.02,7.836]
[1742087116322,0.28100548,620.08,619.02,7.836]
[1742087116523,0.32254422,620.07,619.02,7.836]
[1742087118318,0.28105882,620.06,619.02,7.836]
[1742087118822,0.32255463,620.05,619.02,7.836]
[1742087129623,2.46432273,620.15,619.02,7.836]
[1742087129927,2.46432273,620.32,619.02,7.836]
[1742087131529,2.74526129,620.35,619.02,7.836]
[1742087131725,0.32240384,620.34,619.02,7.836]
[1742087136232,0.28094423,620.33,619.02,7.836]
[1742087136429,0.32241423,620.32,619.02,7.836]
[1742087139234,0.2809465,620.31,619.02,7.836]
[1742087139533,0.32242463,620.3,619.02,7.836]
[1742087143332,0.28093289,620.29,619.02,7.836]
[1742087143533,0.32243502,620.28,619.02,7.836]
[1742087146239,0.28093289,620.27,619.02,7.836]
[1742087146439,0.32244542,620.26,619.02,7.836]
[1742087155350,0.28097939,620.25,619.02,7.836]
[1742087155544,0.32246102,620.23,619.02,7.836]
[1742087159450,0.28092949,620.22,619.02,7.836]
[1742087159652,0.32247662,620.2,619.02,7.836]
[1742087160346,0.28103839,620.19,619.02,7.836]
[1742087160750,0.32249221,620.17,619.02,7.836]
[1742087163858,0.28092949,620.16,619.02,7.836]
[1742087164059,0.32250782,620.14,619.02,7.836]
[1742087168360,0.28114397,620.13,619.02,7.836]
[1742087168559,0.32252342,620.11,619.02,7.836]
[1742087169663,2.46432273,619.83,619.02,7.836]
[1742087169860,0.32267953,619.81,619.02,4.60211815]
[1742087170060,0.32267953,619.81,619.02,4.268]
[1742087173893,2.78700226,619.81,619.02,4.268]
[1742087175286,0.28116895,619.8,619.02,4.268]
[1742087175780,0.32268994,619.79,619.02,4.268]
[1742087179269,0.28117236,619.78,619.02,4.268]
[1742087179468,0.32270035,619.77,619.02,4.268]
[1742087181273,0.28118145,619.76,619.02,4.268]
[1742087181973,0.32271077,619.75,619.02,4.268]
[1742087185479,0.28112125,619.74,619.02,4.268]
[1742087185680,0.32272118,619.73,619.02,4.268]
[1742087188283,0.28110082,619.72,619.02,4.268]
[1742087188482,0.3227316,619.71,619.02,4.268]
[1742087190479,0.3227316,619.71,618.25,1.3]
[1742087193180,0.3227316,619.71,618.26,2.601]
[1742087193685,0.3227316,619.71,618.27,1.344]
[1742087194281,0.28139289,619.7,618.27,1.344]
[1742087194480,0.32274722,619.68,618.27,1.344]
[1742087194981,2.46432273,619.19,618.27,1.344]
[1742087195186,0.32301306,619.17,618.27,1.344]
[1742087200384,0.28137356,619.16,618.27,1.344]
[1742087200990,0.32302349,619.15,618.27,1.344]
[1742087204391,0.28140086,619.14,618.27,1.344]
[1742087204591,0.32303393,619.13,618.27,1.344]
[1742087205293,0.28145548,619.12,618.27,1.344]
[1742087206289,0.32304437,619.11,618.27,1.344]
[1742087211302,0.32304437,619.11,618.27,2.899]
[1742087215701,0.28130646,619.41,618.27,2.899]
[1742087215897,0.32289312,619.4,618.27,2.899]
[1742087218702,0.32289312,619.4,618.27,3.22248326]
[1742087219604,2.74553712,619.78,618.27,3.22248326]
[1742087219799,0.32270035,619.77,618.28,0.32347803]
[1742087224010,0.32270035,619.77,618.28,2.13747803]
[1742087226318,0.28128372,619.76,618.28,2.13747803]
[1742087226617,0.32271597,619.74,618.28,2.13747803]
[1742087228218,0.32271597,619.74,618.28,3.20747803]
[1742087228614,0.32271597,619.74,618.28,4.32047803]
[1742087230122,0.32271597,619.74,618.28,5.72447803]
[1742087231922,0.32271597,619.74,618.28,5.401]
[1742087232326,0.28131783,619.73,618.28,5.401]
[1742087232528,0.3227316,619.71,618.28,5.401]
[1742087236227,0.28131101,619.7,618.28,5.401]
[1742087236529,0.32274722,619.68,618.28,5.401]
[1742087238731,0.28132465,619.67,618.28,5.401]
[1742087238931,0.32276284,619.65,618.28,5.401]
[1742087241332,0.28139403,619.64,618.28,5.401]
[1742087241632,0.32277847,619.62,618.28,5.401]
[1742087243531,2.46432273,619.32,618.28,5.401]
[1742087243731,0.32294526,619.3,618.28,5.401]
[1742087244438,0.28143386,619.29,618.28,5.401]
[1742087245341,0.3229609,619.27,618.28,5.401]
[1742087248140,0.3229609,619.27,618.28,6.397]
[1742087248342,0.28147711,619.26,618.28,6.397]
[1742087248641,0.32297655,619.24,618.28,6.397]
[1742087250244,0.28148621,619.23,618.28,6.397]
[1742087250441,0.32299219,619.21,618.28,6.397]
[1742087254348,0.28144069,619.2,618.28,6.397]
[1742087254545,0.32300784,619.18,618.28,6.397]
[1742087257253,0.28143158,619.17,618.28,6.397]
[1742087257453,0.32302349,619.15,618.28,6.397]
[1742087260250,0.2814589,619.14,618.28,6.397]
[1742087260452,0.32303915,619.12,618.28,6.397]
[1742087260856,0.32303915,619.12,618.28,7.44]
[1742087263260,0.28145434,619.11,618.28,7.44]
[1742087263455,0.3230548,619.09,618.28,7.44]
[1742087265262,0.28150785,619.08,618.28,7.44]
[1742087265461,0.32306524,619.07,618.28,7.44]
[1742087269361,2.46432273,618.84,618.28,7.44]
[1742087270471,0.32319053,618.83,618.28,7.44]
[1742087270871,0.32319053,618.83,618.28,1.043]
[1742087271171,2.78751326,618.83,618.28,1.043]
[1742087271365,0.28157276,618.82,618.28,1.043]
[1742087271667,0.32320098,618.81,618.28,1.043]
[1742087274270,0.32320098,618.81,618.28,0.16269448]
[1742087274472,0.32320098,618.81,618.25,5.265]
[1742087277375,0.28161947,618.8,618.25,5.265]
[1742087277576,0.32321142,618.79,618.25,5.265]
[1742087279577,2.46432273,618.62,618.25,5.265]
[1742087279777,0.32330547,618.61,618.25,5.265]
[1742087281776,0.32330547,618.61,618.25,1.292]
[1742087281979,0.32330547,618.61,618.25,0.08310155]
[1742087282181,0.32330547,618.61,618.2,1.197]
[1742087282381,0.28163201,618.6,618.2,1.197]
[1742087282580,0.32331592,618.59,618.2,1.197]
[1742087283081,2.46432273,618.38,618.2,1.197]
[1742087284980,0.32331592,618.59,618.2,1.197]
[1742087285481,0.32331592,618.59,617.16,1.298]
[1742087285682,0.32331592,618.59,617.17,0.32405982]
[1742087287783,0.32331592,618.59,617.18,0.29744769]
[1742087287983,0.32331592,618.59,617.2,0.32404406]
[1742087288182,0.32331592,618.59,617.21,0.29744769]
[1742087288383,0.32331592,618.59,617.22,0.32403356]
[1742087288885,0.32331592,618.59,617.23,0.97766413]
[1742087289081,0.32331592,618.59,617.24,1.3016872]
[1742087289285,0.32331592,618.59,617.25,1.30168195]
[1742087289485,0.32331592,618.59,617.26,0.97766413]
[1742087289785,0.32331592,618.59,617.27,3.24137734]
[1742087289982,0.32331592,618.59,617.28,1.3016662]
[1742087290187,0.32331592,618.59,617.29,2.42372634]
[1742087290386,0.32331592,618.59,617.3,0.32399157]
[1742087290687,0.32331592,618.59,617.31,1.12206539]
[1742087291091,0.32331592,618.59,617.32,0.32398107]
[1742087291786,0.32331592,618.59,617.33,1.12206539]
[1742087291990,0.32331592,618.59,617.34,0.32397058]
[1742087294591,0.28168558,618.58,617.34,0.32397058]
[1742087294791,0.32332638,618.57,617.34,0.32397058]
[1742087298295,0.281754,618.56,617.34,0.32397058]
[1742087299606,0.32333683,618.55,617.34,0.32397058]
[1742087303507,0.28168672,618.54,617.34,0.32397058]
[1742087303801,0.32334729,618.53,617.34,0.32397058]
[1742087305508,0.28171294,618.52,617.34,0.32397058]
[1742087305807,0.32335774,618.51,617.34,0.32397058]
[1742087308210,0.28172093,618.5,617.34,0.32397058]
[1742087308410,0.3233682,618.49,617.34,0.32397058]
[1742087310406,0.28178708,618.48,617.34,0.32397058]
[1742087310604,0.32337866,618.47,617.34,0.32397058]
[1742087310805,0.32337866,618.47,617.35,1.266]
[1742087313412,0.28176769,618.46,617.35,1.266]
[1742087313612,0.32338911,618.45,617.35,1.266]
[1742087316316,0.28178822,618.44,617.35,1.266]
[1742087316510,0.32339957,618.43,617.35,1.266]
[1742087319418,0.2817905,618.42,617.35,1.266]
[1742087319717,0.32341003,618.41,617.35,1.266]
[1742087325418,0.28182473,618.4,617.35,1.266]
[1742087325614,0.32342049,618.39,617.35,1.266]
[1742087329128,0.28179963,618.38,617.35,1.266]
[1742087329825,0.32343095,618.37,617.3,1.555]
[1742087331326,0.28183272,618.36,617.3,1.555]
[1742087331528,0.32344141,618.35,617.3,1.555]
[1742087332628,0.32344141,618.35,617.3,2.784]
[1742087340534,0.28180648,618.34,617.3,2.784]
[1742087340727,0.32345187,618.33,617.3,2.784]
[1742087343436,0.28186468,618.32,617.3,4.428]
[1742087343636,0.32346757,618.3,617.3,4.428]
[1742087344636,0.32346757,618.3,617.3,5.638]
[1742087345539,2.46432273,618.14,617.3,5.638]
[1742087345938,0.32355653,618.13,617.3,5.638]
[1742087348739,2.46432273,618.03,617.3,5.638]
[1742087349038,0.32361412,618.02,617.3,5.638]
[1742087350544,0.28196859,618.01,617.3,5.638]
[1742087350744,0.32362459,618.0,617.3,5.638]
[1742087351844,2.46432273,617.99,617.3,5.638]
[1742087352041,0.32363506,617.98,617.3,5.638]
[1742087352239,0.32363506,617.98,617.3,4.409]
[1742087353040,0.32363506,617.98,617.3,1.1639594]
[1742087353246,0.32363506,617.98,615.6,1.20216736]
[1742087353446,0.32363506,617.98,615.64,0.73624505]
[1742087353747,0.32363506,617.98,615.7,0.73624505]
[1742087354047,0.32363506,617.98,615.72,0.32482297]
[1742087354248,0.32363506,617.98,615.73,2.84278067]
[1742087354447,0.32363506,617.98,615.71,2.91936487]
[1742087354448,0.32363506,617.98,615.75,0.32480714]
[1742087354652,0.32363506,617.98,615.76,2.5446347]
[1742087354849,0.32363506,617.98,615.78,0.32479132]
[1742087355149,0.32363506,617.98,615.79,2.8427562]
[1742087355351,0.32363506,617.98,615.8,1.27682715]
[1742087355549,0.32363506,617.98,615.81,1.27682715]
[1742087355751,0.32363506,617.98,615.82,0.97870565]
[1742087356050,0.32363506,617.98,615.83,0.97870565]
[1742087356244,0.32363506,617.98,615.84,1.30080345]
[1742087356450,0.32363506,617.98,615.85,0.3247544]
[1742087356652,0.32363506,617.98,615.86,0.29811339]
[1742087356954,0.32363506,617.98,615.88,0.32473858]
[1742087357247,0.32363506,617.98,615.89,0.29811339]
[1742087357450,0.32363506,617.98,615.91,0.32472276]
[1742087359355,0.28216407,617.97,615.92,0.2981082]
[1742087359756,0.28216407,617.97,615.93,0.29810854]
[1742087359951,0.28216407,617.97,615.92,0.29810854]
[1742087360156,0.28216407,617.97,615.94,0.32470695]